Cogmind - Beta 17 @@@ ROGUE MODE // 2026.07.03 @ 12:49:29 Player: ae Result: Escaped! Performance ------------- Evolutions (9) 4500 Regions Visited (24) 4800 Robots Destroyed (87) 435 Value Destroyed (2678) 2678 Prototype IDs (57) 1140 Alien Tech Used (1) 200 Bonus (5550) 5550 TOTAL SCORE: 19303 Bonus ------- Follower Combat Kills 417 Awakened Behemoth Slayer 1000 Network Hubs Disabled 400 Aligned with FarCom 300 Met Imprinter 300 Met Zhirov 300 Win 3000 Friendly Fire -167 Cogmind --------- Core Integrity 1587/1600 Matter 237/300 Energy 191/200 System Corruption 0% Temperature Cool (-182) Movement Flying (22) Location To Epsilon Eridani Parts ------- > --- POWER (2) -------- Micro Fission Core Micro Fission Core > --- PROPULSION (8) --- Improved Cesium-ion Thruster Cooled VTOL Module Cooled VTOL Module Cooled VTOL Module Field Propulsion Array Impulse Thruster Array > --- UTILITY (13) ----- Advanced Power Amplifier Advanced Power Amplifier Advanced Cryofiber Web Advanced Cooling System Large Storage Unit Advanced Weight Redist. System Structural Scanner Advanced Sensor Array Advanced Signal Interpreter ECM Suite Experimental Reaction Control System Improved Light Armor Plating Hacking Drone Bay (1/1) > --- WEAPON (2) ------- Precision Grenade Launcher CR-A16's Behemoth Slayer > --- INVENTORY (15) --- Light Particle Reactor Improved Cesium-ion Thruster Improved Q-thruster Experimental Q-thruster Advanced Cooling System Transport Network Coupler Advanced Component Analysis Suite Transdimensional Reconstructor Nova Cannon Enhanced Nova Cannon Enhanced Nova Cannon Gamma Bomb Array Advanced Remote Datajack Longsword +1 Enhanced Force Lance Peak State ------------ > --- POWER ------------ Micro Fission Core Micro Fission Core > --- PROPULSION ------- Improved Cesium-ion Thruster Cooled VTOL Module Cooled VTOL Module Cooled VTOL Module Field Propulsion Array Impulse Thruster Array > --- UTILITY ---------- Advanced Power Amplifier Advanced Power Amplifier Advanced Cryofiber Web Advanced Cooling System Large Storage Unit Advanced Weight Redist. System Structural Scanner Advanced Sensor Array Advanced Signal Interpreter ECM Suite Experimental Reaction Control System Advanced Component Analysis Suite Hacking Drone Bay > --- WEAPON ----------- Precision Grenade Launcher CR-A16's Behemoth Slayer > --- INVENTORY -------- Light Particle Reactor Improved Cesium-ion Thruster Improved Q-thruster Experimental Q-thruster Advanced Cooling System Transport Network Coupler Improved Light Armor Plating Transdimensional Reconstructor Nova Cannon Enhanced Nova Cannon Enhanced Nova Cannon Gamma Bomb Array Advanced Remote Datajack Longsword +1 Enhanced Force Lance [Rating: 157] Favorites ----------- Power Micro Fission Core Engine Light Ion Engine Power Core Micro Fission Core Reactor Heavy Antimatter Reactor Propulsion Cooled VTOL Module Treads Light Treads Hover Unit Antigrav System Flight Unit Cooled VTOL Module Utility Advanced Sensor Array Device Advanced Sensor Array Storage Large Storage Unit Processor Improved Signal Interpreter Protection Improved Light Armor Plating Weapon Longsword +1 Energy Gun Small Laser Energy Cannon Heavy Plasma Cannon Ballistic Gun Light Assault Rifle Launcher Precision Grenade Launcher Slashing Weapon Longsword +1 Piercing Weapon CR-A16's Behemoth Slayer Build | -11 -10 -10 -10 -9 -8 -7 -7 -7 -7 -6 -6 -6 -6 -6 -6 -5 -4 -4 -4 -4 -3 -3 -2 -1 ------- Run | Yrd Mat Min Exi Min Mat Fac Low Low Zio Pro Fac Ext Cet Arc Hub Fac Fac Upp Upp Zhi Pro Res Res Acc Slots Evolved 18 | . . . . . 4 2 . . . . 2 . . . . 2 2 . . . . 2 2 2 Power 1 | . . . . . . . . . . . . . . . . 1 . . . . . . . . Propulsion 6 | . . . . . 2 . . . . . 1 . . . . 1 . . . . . 1 . 1 Utility 11 | . . . . . 2 2 . . . . 1 . . . . . 2 . . . . 1 2 1 Weapon . | . . . . . . . . . . . . . . . . . . . . . . . . . Parts Attached 81 | 6 . . . 1 2 16 . 1 . 1 5 8 . . 2 8 8 . . 2 . 10 6 5 Power 7 | 1 . . . . . 1 . . . . . . . . . 3 1 . . 1 . . . . Engine 1 | 1 . . . . . . . . . . . . . . . . . . . . . . . . Core 5 | . . . . . . 1 . . . . . . . . . 3 1 . . . . . . . Reactor 1 | . . . . . . . . . . . . . . . . . . . . 1 . . . . Propulsion 20 | 2 . . . . 1 7 . . . . 1 . . . . 3 1 . . . . 4 . 1 Treads 4 | 2 . . . . 1 1 . . . . . . . . . . . . . . . . . . Leg . | . . . . . . . . . . . . . . . . . . . . . . . . . Wheel . | . . . . . . . . . . . . . . . . . . . . . . . . . Hover 1 | . . . . . . . . . . . . . . . . . . . . . . 1 . . Flight 15 | . . . . . . 6 . . . . 1 . . . . 3 1 . . . . 3 . 1 Utility 42 | 1 . . . 1 . 5 . 1 . . 4 8 . . . 1 6 . . 1 . 6 6 2 Device 31 | 1 . . . 1 . 1 . 1 . . 2 7 . . . 1 4 . . . . 6 5 2 Storage 1 | . . . . . . . . . . . . . . . . . . . . . . . 1 . Processor 6 | . . . . . . 4 . . . . . . . . . . 2 . . . . . . . Hackware . | . . . . . . . . . . . . . . . . . . . . . . . . . Protection 4 | . . . . . . . . . . . 2 1 . . . . . . . 1 . . . . Artifact . | . . . . . . . . . . . . . . . . . . . . . . . . . Weapon 12 | 2 . . . . 1 3 . . . 1 . . . . 2 1 . . . . . . . 2 Energy Gun 1 | 1 . . . . . . . . . . . . . . . . . . . . . . . . Energy Cannon 3 | . . . . . . . . . . . . . . . 1 . . . . . . . . 2 Ballistic Gun 2 | 1 . . . . . . . . . . . . . . 1 . . . . . . . . . Ballistic Cannon . | . . . . . . . . . . . . . . . . . . . . . . . . . Launcher 2 | . . . . . 1 1 . . . . . . . . . . . . . . . . . . Special Weapon . | . . . . . . . . . . . . . . . . . . . . . . . . . Impact Weapon . | . . . . . . . . . . . . . . . . . . . . . . . . . Slashing Weapon 2 | . . . . . . 2 . . . . . . . . . . . . . . . . . . Piercing Weapon 2 | . . . . . . . . . . 1 . . . . . 1 . . . . . . . . Special Melee Weapon . | . . . . . . . . . . . . . . . . . . . . . . . . . Unidentified Prototypes 15 | . . . . . . 1 . 1 . . . 1 . . 1 . . . . 3 . 5 3 . Parts Lost 11 | . . . . 1 3 . . 1 . . . 1 . . 2 2 1 . . . . . . . Power 2 | . . . . . . . . . . . . . . . 1 1 . . . . . . . . Propulsion 4 | . . . . . 2 . . . . . . . . . 1 . 1 . . . . . . . Utility 4 | . . . . . 1 . . 1 . . . 1 . . . 1 . . . . . . . . Weapon 1 | . . . . 1 . . . . . . . . . . . . . . . . . . . . Highest Loss Streak 2 | . . . . 1 2 . . 1 . . . 1 . . 2 1 1 . . . . . . . To Critical Strikes . | . . . . . . . . . . . . . . . . . . . . . . . . . Average Backups 5 | 2 5 5 5 4 4 4 3 3 5 5 3 5 5 5 5 4 5 5 5 5 5 4 12 14 Power . | . 1 1 1 . . . . . . . . . . . . . 1 1 1 1 1 . 2 1 Propulsion . | 1 2 2 2 2 2 2 1 1 1 1 . . . . . 1 1 1 1 1 1 . 1 2 Utility 1 | . 1 1 1 . . . . . 1 2 1 2 2 2 1 . . 1 1 . . . 2 3 Weapon 2 | . 1 1 1 1 2 2 1 1 2 2 2 2 3 3 3 1 1 1 1 1 1 2 4 5 Tool/Special . | . . . . . . . . . . . . . . . . . . . . . . . . . Unused Backups 24 | . 1 1 1 . . 2 . . 1 . . . . . . 1 1 . . . . 2 3 11 Power 4 | . . . . . . . . . . . . . . . . . . . . . . 1 2 1 Propulsion 4 | . 1 1 . . . . . . . . . . . . . . . . . . . . . 2 Utility 5 | . . . . . . . . . . . . . . . . 1 . . . . . 1 . 3 Weapon 8 | . . . 1 . . 2 . . 1 . . . . . . . 1 . . . . . . 3 Tool/Special 3 | . . . . . . . . . . . . . . . . . . . . . . . 1 2 Average Slot Usage (%) 85 | . 71 71 71 76 40 59 98 82 76 76 79 88 93 93 92 88 95 100 100 99 100 96 94 91 Core 6 | . . . . . . 1 7 7 7 7 5 6 6 6 5 7 10 10 10 10 10 9 8 8 Treads 2 | . 28 28 28 28 18 9 . . . . . . . . . . . . . . . . . . Flight 26 | . . . . . . 6 30 30 30 30 33 33 33 33 33 31 30 31 31 31 31 29 26 24 Device 23 | . 14 14 14 24 12 12 15 14 15 15 15 25 26 26 26 24 27 31 31 30 31 32 36 39 Processor 9 | . . . . . . 20 30 19 15 15 10 6 6 6 6 5 9 10 10 10 10 9 5 4 Protection 4 | . . . . . . . . . . . 5 9 13 13 13 7 5 5 5 5 5 4 4 4 Ballistic Gun 1 | . 14 14 14 14 9 6 . . . . . . . . . . . . . . . . . . Launcher 1 | . . . . . . . 5 2 . . . . . . . 1 5 5 5 5 5 4 4 4 Slashing Weapon 4 | . . . . . . . 7 7 7 2 5 5 6 6 5 4 4 5 5 5 5 4 1 . Peak Build Rating 157 | 5 5 5 6 10 10 45 55 70 67 67 77 79 65 65 73 91 103 99 99 106 104 124 136 157 Average Rating 73 | 3 5 5 5 8 6 20 52 62 67 64 73 67 65 65 67 79 97 99 99 101 104 114 129 151 On Entrance 59 | . 5 5 5 6 8 6 45 55 67 67 63 74 65 65 65 53 86 99 99 99 104 104 117 136 Avg Prop Armor Cover (%) 27 | 34 28 28 28 30 32 33 . . . . . . . . . . . . . . . 3 . 2 Naked Turns . | . . . . . . . . . . . . . . . . . . . . . . . . . Heaviest Build 57 | 3 3 3 3 7 3 11 16 19 19 19 24 27 24 24 31 32 31 30 30 30 30 34 54 57 Greatest Support 63 | 3 3 3 3 40 3 20 20 20 20 20 25 35 35 25 35 41 35 35 35 35 35 43 54 63 Greatest Overweight (x) 7 | . . . . . . 1 . . . . . 7 . . 1 1 . . . . . . . 1 Average Overweight (x) . | . . . . . . . . . . . . . . . . . . . . . . . . . Largest Inventory Capacity 15 | 5 5 5 5 5 5 5 5 5 5 5 5 5 5 5 5 5 5 5 5 5 5 5 15 15 Average Capacity 5 | 5 5 5 5 5 5 5 5 5 5 5 5 5 5 5 5 5 5 5 5 5 5 5 14 15 Most Carried 15 | 5 5 5 5 5 5 5 5 5 5 5 5 5 5 5 5 5 5 5 5 5 5 5 15 15 Average Carried 5 | 2 4 5 5 4 4 4 4 3 4 5 3 4 5 5 4 4 4 5 5 4 5 4 13 14 Final Capacity 15 | 5 5 5 5 5 5 5 5 5 5 5 5 5 5 5 5 5 5 5 5 5 5 5 15 15 Final Carried 15 | 5 5 5 5 5 5 5 5 5 5 5 5 5 5 5 5 5 5 5 5 5 5 5 15 15 Class Distribution -------------------- 24% | Scout 17% | Scavenger-Scout 16% | Sprinter 9% | Mutant 9% | Scavenger-Ninja 7% | Commander-Scout 4% | Infiltrator-Ninja 3% | Scavenger-Sprinter Dominant Class ---------------- Mutant | -10/Materials Mutant | -10/Mines Mutant | -10/Exiles Scout | -9/Mines Mutant | -8/Materials Scout | -7/Factory Scout | -7/Lower Caves Sprinter | -7/Lower Caves Sprinter | -7/Zion Sprinter | -6/Proximity Caves Scout | -6/Factory Commander-Scout | -6/Extension Scavenger-Scout | -6/Cetus Scavenger-Scout | -6/Archives Scavenger-Sprinter | -6/Hub_04(d) Scout | -5/Factory Scavenger-Scout | -4/Factory Scavenger-Scout | -4/Upper Caves Scavenger-Scout | -4/Upper Caves Scavenger-Scout | -4/Zhirov Scout | -3/Proximity Caves Infiltrator-Ninja | -3/Research Scavenger-Ninja | -2/Research Scavenger-Ninja | -1/Access Resources | -11 -10 -10 -10 -9 -8 -7 -7 -7 -7 -6 -6 -6 -6 -6 -6 -5 -4 -4 -4 -4 -3 -3 -2 -1 ----------- Run | Yrd Mat Min Exi Min Mat Fac Low Low Zio Pro Fac Ext Cet Arc Hub Fac Fac Upp Upp Zhi Pro Res Res Acc Matter Collected 3700 | 264 . 3 . 31 . 73 112 402 316 256 697 802 . . . 175 129 30 . 90 . 140 150 30 Remotely . | . . . . . . . . . . . . . . . . . . . . . . . . . Salvage Created 5206 | 122 . . . 46 82 73 85 265 103 10 501 1586 . 35 247 256 559 . 153 213 . 158 682 30 Parts 235 | 9 . . . 1 6 1 3 5 2 1 23 78 . 4 1 12 25 . 11 5 . 6 37 5 Haulers Intercepted 8 | . . . . . . . . . . . 4 . . . . . . . . . . 1 3 . Recyclers Shooed 2 | . . . . . . . . . . . . 1 . . . . 1 . . . . . . . Parts Field Recycled . | . . . . . . . . . . . . . . . . . . . . . . . . . Retrieved Matter . | . . . . . . . . . . . . . . . . . . . . . . . . . Parts Self-Destructed 22 | . . . . . . . . . 6 4 . . . . . . . . 9 3 . . . . Prevented 11 | . . . . . . . . . . . . . . . . . . . 11 . . . . . Parts Restored . | . . . . . . . . . . . . . . . . . . . . . . . . . Kills | -11 -10 -10 -10 -9 -8 -7 -7 -7 -7 -6 -6 -6 -6 -6 -6 -5 -4 -4 -4 -4 -3 -3 -2 -1 ------- Run | Yrd Mat Min Exi Min Mat Fac Low Low Zio Pro Fac Ext Cet Arc Hub Fac Fac Upp Upp Zhi Pro Res Res Acc Combat Hostiles Destroyed 37 | . . . . 1 3 . . 1 . . . 26 . . 1 . 1 . 2 . . . 2 . Melee 25 | . . . . . . . . 1 . . . 22 . . . . . . 2 . . . . . Guns 1 | . . . . 1 . . . . . . . . . . . . . . . . . . . . AOE 7 | . . . . . 3 . . . . . . 3 . . 1 . . . . . . . . . Classes Destroyed 15 | 2 . . . 1 3 . 1 2 . 1 1 4 . . . . . . . . . . . . Worker 11 | . . . . . . . . . . . 1 . . . 1 4 . . . . . 1 3 1 Builder 7 | . . . . . 1 . . . . . 2 1 . . . . 1 . . . . 1 1 . Tunneler 9 | 2 . . . . . . . . . . 2 . . . . 2 1 . . . . . 1 1 Hauler 8 | . . . . . . . . . . . 4 . . . . . . . . . . 1 3 . Recycler 9 | 1 . . . . 1 1 . . . . . 1 . . 1 1 3 . . . . . . . Operator 4 | . . . . . . . . . . . . 1 . 1 . . . . . . . . 2 . Drone 1 | . . . . . . . . 1 . . . . . . . . . . . . . . . . Watcher 3 | . . . . . 1 . . . . . . . . . 1 1 . . . . . . . . Swarmer 6 | . . . . . 3 . . . . . . 3 . . . . . . . . . . . . Grunt 17 | . . . . 1 . . . . . . . 14 . . 1 . . . 1 . . . . . Sentry 8 | . . . . . . . . . . . . 7 . . . . . . 1 . . . . . Hunter 1 | . . . . . . . . . . . . 1 . . . . . . . . . . . . Behemoth 4 | . . . . . . . . . . . . 1 . . . . 1 . . . . . 2 . Decomposer 1 | . . . . . . . 1 . . . . . . . . . . . . . . . . . Packrat 2 | . . . . . . . . 2 . . . . . . . . . . . . . . . . Samaritan 2 | . . . . . . . . 2 . . . . . . . . . . . . . . . . Tinkerer 1 | . . . . . . . . . . 1 . . . . . . . . . . . . . . Best Kill Streak 7 | 2 . . . 1 6 1 . 1 . . 3 7 . 1 4 2 4 . 2 . . 2 3 1 Combat Bots Only 7 | . . . . 1 2 . . 1 . . . 7 . . 1 . 1 . 2 . . . 1 . Max Kills in Single Turn 4 | 1 . . . 1 1 1 1 1 . 1 1 2 . 1 4 1 1 . 1 . . 1 1 1 Gunslinging . | . . . . . . . . . . . . . . . . . . . . . . . . . Exploded 2 | . . . . . 1 . . . . . . 2 . . 1 . . . . . . . . . Melee 1 | . . . . . . . . 1 . . . 1 . . . . . . 1 . . . . . Uniques/NPCs Destroyed . | . . . . . . . . . . . . . . . . . . . . . . . . . Combat | -11 -10 -10 -10 -9 -8 -7 -7 -7 -7 -6 -6 -6 -6 -6 -6 -5 -4 -4 -4 -4 -3 -3 -2 -1 -------- Run | Yrd Mat Min Exi Min Mat Fac Low Low Zio Pro Fac Ext Cet Arc Hub Fac Fac Upp Upp Zhi Pro Res Res Acc Hostile Shots Fired 256 | . . 3 . 29 35 . . 8 . 6 . 67 7 6 63 7 3 . 10 . 1 . 2 9 Missed 108 | . . 2 . 7 13 . . 4 . 4 . 23 4 4 29 3 1 . 6 . 1 . 2 5 Hits 148 | . . 1 . 22 22 . . 4 . 2 . 44 3 2 34 4 2 . 4 . . . . 4 Melee 5 | . . . . 5 . . . . . . . . . . . . . . . . . . . . Projectile 143 | . . 1 . 17 22 . . 4 . 2 . 44 3 2 34 4 2 . 4 . . . . 4 Critical Strikes 3 | . . . . 1 . . . . . . . . . . . 1 . . . . . . . 1 Damage Taken 2195 | . . 8 . 350 371 24 . 52 . 30 . 511 75 47 427 145 60 . 39 . . . . 56 Core 385 | . . . . 102 62 24 . . . . . 65 . 24 15 80 . . . . . . . 13 Absorbed by Shields 22 | . . . . . . . . . . . . . . . 22 . . . . . . . . . Regen/Repaired (Parts) 71 | . . . . . . . . . . . 15 . . . . 56 . . . . . . . . Core Remaining (%) 92 | 100 . . . 59 88 . . . . 96 . . . . 87 92 . . . . 100 100 100 99 Volleys Fired 44 | 5 . 3 . 11 8 5 . . . . . 3 . . 4 3 . . . . . . . 2 Largest 2 | 2 . 2 . 2 1 1 . . . . . 1 . . 1 1 . . . . . . . 1 Hottest 120 | 60 . 60 . 60 33 20 . . . . . 36 . . 90 36 . . . . . . . 120 Shots Fired 60 | 10 . 6 . 19 8 5 . . . . . 3 . . 4 3 . . . . . . . 2 Gun 40 | 10 . 6 . 19 . 5 . . . . . . . . . . . . . . . . . . Cannon 5 | . . . . . . . . . . . . . . . 4 . . . . . . . . 1 Launcher 15 | . . . . . 8 . . . . . . 3 . . . 3 . . . . . . . 1 Special . | . . . . . . . . . . . . . . . . . . . . . . . . . Kinetic 24 | 5 . 3 . 11 . 5 . . . . . . . . . . . . . . . . . . Thermal 21 | 5 . 3 . 8 . . . . . . . . . . 4 . . . . . . . . 1 Explosive 15 | . . . . . 8 . . . . . . 3 . . . 3 . . . . . . . 1 Electromagnetic . | . . . . . . . . . . . . . . . . . . . . . . . . . Robot Hit Streak 6 | 5 . 6 . 5 . 2 . . . . . 1 . . . . . . . . . . . . Robot Miss Streak 1 | 1 . 1 . 1 1 1 . . . . . 1 . . . . . . . . . . . . Penetration Max . | . . . . . . . . . . . . . . . . . . . . . . . . . Secondary Targets . | . . . . . . . . . . . . . . . . . . . . . . . . . Shots Hit Robots 168 | 8 . 4 . 15 . 6 2 5 3 5 16 53 4 1 . 12 8 . 2 3 . 4 15 2 Core Hits 91 | 4 . 2 . 4 9 2 2 2 1 2 7 30 . 1 6 2 2 . 2 2 . 3 7 1 Critical Kills . | . . . . . . . . . . . . . . . . . . . . . . . . . Critical Parts Destroyed . | . . . . . . . . . . . . . . . . . . . . . . . . . Critical Strikes 11 | . . . . . . . . . . . 2 5 1 . . . . . . . . . 2 1 Sever 8 | . . . . . . . . . . . 2 5 1 . . . . . . . . . . . Impale 3 | . . . . . . . . . . . . . . . . . . . . . . . 2 1 Melee Attacks 283 | . . . . . . 4 5 10 4 8 30 61 5 14 4 43 14 8 10 3 1 20 32 7 Impact . | . . . . . . . . . . . . . . . . . . . . . . . . . Slashing 237 | . . . . . . 4 5 10 4 . 25 58 5 14 4 40 12 8 10 2 1 20 15 . Piercing 46 | . . . . . . . . . . 8 5 3 . . . 3 2 . . 1 . . 17 7 Sneak Attacks 56 | . . . . . . 1 1 5 . 2 9 11 . 1 . 8 6 . . . . 2 8 2 Combat Hostiles 9 | . . . . . . . . 1 . . . 8 . . . . . . . . . . . . Follow-up Attacks . | . . . . . . . . . . . . . . . . . . . . . . . . . Damage Inflicted 11168 | 82 . 38 . 146 410 148 160 505 258 245 1242 3363 209 122 635 1098 666 . 98 179 . 284 1099 181 Guns 298 | 82 . 38 . 140 . 38 . . . . . . . . . . . . . . . . . . Cannons . | . . . . . . . . . . . . . . . . . . . . . . . . . Explosions 1326 | . . . . . 409 . . . . . . 282 . . 635 . . . . . . . . . Melee 9537 | . . . . . . 110 160 505 258 245 1242 3081 209 122 . 1098 666 . 98 179 . 284 1099 181 Ramming 7 | . . . . 6 1 . . . . . . . . . . . . . . . . . . . Kinetic 143 | 26 . 15 . 64 . 38 . . . . . . . . . . . . . . . . . . Thermal 155 | 56 . 23 . 76 . . . . . . . . . . . . . . . . . . . . Explosive 691 | . . . . . 409 . . . . . . 282 . . . . . . . . . . . . Electromagnetic 635 | . . . . . . . . . . . . . . . 635 . . . . . . . . . Impact . | . . . . . . . . . . . . . . . . . . . . . . . . . Slashing 8431 | . . . . . . 110 160 505 258 . 1159 3046 209 122 . 1098 606 . 98 179 . 284 597 . Piercing 1106 | . . . . . . . . . . 245 83 35 . . . . 60 . . . . . 502 181 Highest Corruption 3 | . . . . . 1 . . . . . . . . . 3 . . . . . . . . . Average Corruption 1 | . . . . . 1 . . . . . . . . . 1 . . . . . . . . . Corruption Purged . | . . . . . . . . . . . . . . . . . . . . . . . . . Corruption Blocked . | . . . . . . . . . . . . . . . . . . . . . . . . . Effects 1 | . . . . . 1 . . . . . . . . . . . . . . . . . . . Data Loss (minor) 1 | . . . . . 1 . . . . . . . . . . . . . . . . . . . Overload Shots . | . . . . . . . . . . . . . . . . . . . . . . . . . Overflow Damage 2534 | . . . . . 9 38 . 244 150 28 294 343 . . 119 480 326 . . . . 40 257 206 Projectiles . | . . . . . . . . . . . . . . . . . . . . . . . . . Explosions 138 | . . . . . 9 . . . . . . 10 . . 119 . . . . . . . . . Melee 2396 | . . . . . . 38 . 244 150 28 294 333 . . . 480 326 . . . . 40 257 206 Knockbacks . | . . . . . . . . . . . . . . . . . . . . . . . . . Impact . | . . . . . . . . . . . . . . . . . . . . . . . . . Kinetic . | . . . . . . . . . . . . . . . . . . . . . . . . . Secondary . | . . . . . . . . . . . . . . . . . . . . . . . . . Self-Inflicted Damage 272 | . . . . . . . . . . . . 38 . . 204 30 . . . . . . . . Shots 5 | . . . . . . . . . . . . 1 . . 2 2 . . . . . . . . Rammed 8 | . . . . 7 1 . . . . . . . . . . . . . . . . . . . Targets Rammed 8 | . . . . 7 1 . . . . . . . . . . . . . . . . . . . Kicked . | . . . . . . . . . . . . . . . . . . . . . . . . . Crushed . | . . . . . . . . . . . . . . . . . . . . . . . . . Highest Temperature 70 | 10 . 10 . 70 . . . . . . . 2 21 8 70 21 . . . . . . . . Average Temperature 22 | 7 . 7 . 44 . . . . . . . 2 21 5 18 13 . . . . . . . . Received Heat Transfer 607 | . . . . 102 99 . . . . 9 . 192 18 18 62 18 9 . . . . . . 80 Siege Activations . | . . . . . . . . . . . . . . . . . . . . . . . . . Martial Activations . | . . . . . . . . . . . . . . . . . . . . . . . . . Shielding Activations . | . . . . . . . . . . . . . . . . . . . . . . . . . Robots Disrupted . | . . . . . . . . . . . . . . . . . . . . . . . . . Combat Hostiles . | . . . . . . . . . . . . . . . . . . . . . . . . . Robots Corrupted . | . . . . . . . . . . . . . . . . . . . . . . . . . Combat Hostiles . | . . . . . . . . . . . . . . . . . . . . . . . . . Parts Fried 4 | . . . . . . . . . . . . . . . 4 . . . . . . . . . Impact Corruptions . | . . . . . . . . . . . . . . . . . . . . . . . . . Robots Melted . | . . . . . . . . . . . . . . . . . . . . . . . . . Combat Hostiles . | . . . . . . . . . . . . . . . . . . . . . . . . . Parts Melted . | . . . . . . . . . . . . . . . . . . . . . . . . . Heat Transferred 350 | 125 . 50 . 175 . . . . . . . . . . . . . . . . . . . . Parts Sabotaged . | . . . . . . . . . . . . . . . . . . . . . . . . . Parts Stolen . | . . . . . . . . . . . . . . . . . . . . . . . . . Parts Stripped . | . . . . . . . . . . . . . . . . . . . . . . . . . Power Chain Reactions . | . . . . . . . . . . . . . . . . . . . . . . . . . Alert | -11 -10 -10 -10 -9 -8 -7 -7 -7 -7 -6 -6 -6 -6 -6 -6 -5 -4 -4 -4 -4 -3 -3 -2 -1 ------- Run | Yrd Mat Min Exi Min Mat Fac Low Low Zio Pro Fac Ext Cet Arc Hub Fac Fac Upp Upp Zhi Pro Res Res Acc Maximum Alert Level 2 | . . . . . 1 . . . . . . 1 1 . 2 1 . . . . . . . . Low Security (%) 89 | 100 100 100 . 100 96 100 . . . . 100 81 79 100 57 71 100 . . . . 100 100 100 Level 1 10 | . . . . . 3 . . . . . . 18 20 . 33 28 . . . . . . . . Level 2 . | . . . . . . . . . . . . . . . 9 . . . . . . . . . Level 3 . | . . . . . . . . . . . . . . . . . . . . . . . . . Level 4 . | . . . . . . . . . . . . . . . . . . . . . . . . . Level 5 . | . . . . . . . . . . . . . . . . . . . . . . . . . High Security . | . . . . . . . . . . . . . . . . . . . . . . . . . Max Security . | . . . . . . . . . . . . . . . . . . . . . . . . . Peak Influence 419 | 10 6 30 . 80 220 54 . . . . 53 388 201 26 419 288 160 . . . . 44 45 90 Initial 201 | . 6 . . . 23 24 . . . . . 16 201 5 2 154 138 . . . . 23 18 . Average 85 | 2 3 . . 44 95 16 . . . . 34 136 92 16 128 172 146 . . . . 12 19 52 Influence Increases 3656 | 15 . 30 . 140 312 122 5 20 15 63 194 1057 44 22 521 456 80 . 40 15 45 157 173 130 Destroy 0b10 Robot/C 1060 | . . . . 20 80 . . . . 40 20 680 20 . 20 . 20 . 40 . . 80 40 . Destroy 0b10 Robot/NC 310 | 15 . . . . 15 5 5 5 15 . 45 30 . 5 15 40 25 . . 15 . 15 50 10 Destroy Leader 176 | . . . . . 12 . . . . 10 18 74 . . 2 2 10 . . . . 22 26 . Allied During Kill 172 | . . . . . 5 . . . . 13 14 138 . . . . . . . . . 2 . . Successful Hack 159 | . . . . . 10 87 . . . . 28 13 9 . . . . . . . . . 12 . Disable Machine 570 | . . . . . 15 30 . . . . 60 45 15 15 300 60 15 . . . . . . 15 Destroy Structure 564 | . . . . . 40 . . . . . 9 32 . 2 184 114 10 . . . . 38 45 90 Partial Spotted 180 | . . . . . 45 . . . . . . 45 . . . 75 . . . . . . . 15 Lose Combat Pursuer 465 | . . 30 . 120 90 . . 15 . . . . . . . 165 . . . . 45 . . . Influence Decreases 3629 | 5 10 . 30 80 317 142 35 25 15 63 160 731 390 29 211 489 226 138 40 5 20 158 207 103 Entered New Map 708 | . 4 . 30 . 37 31 14 2 . . . 18 159 9 5 163 146 52 . . 10 12 16 . Time Decay 1934 | 5 6 . . 70 80 111 21 23 15 63 160 486 31 20 36 206 70 86 40 5 10 116 171 103 Search Patrol Dispatched 100 | . . . . . . . . . . . . . . . . 100 . . . . . . . . Lost Part 100 | . . . . 10 30 . . . . . . 10 . . 20 20 10 . . . . . . . Lost Ally 487 | . . . . . 20 . . . . . . 217 200 . . . . . . . . 30 20 . Purge Threat 300 | . . . . . 150 . . . . . . . . . 150 . . . . . . . . . Squads Dispatched 26 | . . . . . 4 1 . . . . 1 5 . . 2 3 1 . . . . 2 4 3 Investigation 5 | . . . . . 1 . . . . . . 2 . . . 1 . . . . . . . 1 Extermination 8 | . . . . . . . . . . . 1 . . . 1 1 1 . . . . 1 2 1 Reinforcement 12 | . . . . . 3 . . . . . . 3 . . 1 1 . . . . . 1 2 1 Assault . | . . . . . . . . . . . . . . . . . . . . . . . . . Garrison 1 | . . . . . . 1 . . . . . . . . . . . . . . . . . . Intercept . | . . . . . . . . . . . . . . . . . . . . . . . . . Searches Triggered 1 | . . . . . . . . . . . . . . . . 1 . . . . . . . . Construction Impeded 3 | . . . . . 1 . . . . . . 2 . . . . . . . . . . . . Haulers Reinforced 1 | . . . . . . . . . . . . . . . . . . . . . . 1 . . Active Scanning Responses . | . . . . . . . . . . . . . . . . . . . . . . . . . Cargo Convoy Interrupts . | . . . . . . . . . . . . . . . . . . . . . . . . . Stealth | -11 -10 -10 -10 -9 -8 -7 -7 -7 -7 -6 -6 -6 -6 -6 -6 -5 -4 -4 -4 -4 -3 -3 -2 -1 --------- Run | Yrd Mat Min Exi Min Mat Fac Low Low Zio Pro Fac Ext Cet Arc Hub Fac Fac Upp Upp Zhi Pro Res Res Acc Distress Signals 8 | . . 1 . . 3 . . . . . . 1 1 . . . . . . . . . . 2 Communications Jammed . | . . . . . . . . . . . . . . . . . . . . . . . . . Distress Signals . | . . . . . . . . . . . . . . . . . . . . . . . . . Times Spotted 112 | . 1 3 . 9 18 . . 1 . 2 . 26 5 4 7 8 1 . 5 . 2 2 8 10 Peak Tracking Total 12 | . 1 3 . 6 8 . . 1 . 1 . 4 5 4 3 8 1 . 2 . 3 6 3 12 Tactical Retreats 18 | . . 1 . 4 3 . . 1 . . . . . . . 5 . . . . 1 2 . 1 ECM-based Alert Blocks 6 | . . . . . . . . . . . . . . . . . . . . . . 6 . . Traps | -11 -10 -10 -10 -9 -8 -7 -7 -7 -7 -6 -6 -6 -6 -6 -6 -5 -4 -4 -4 -4 -3 -3 -2 -1 ------- Run | Yrd Mat Min Exi Min Mat Fac Low Low Zio Pro Fac Ext Cet Arc Hub Fac Fac Upp Upp Zhi Pro Res Res Acc Traps Triggered 15 | . . . . . 2 1 . . . . 1 6 . . 2 1 . . . . . . . 2 Indirectly . | . . . . . . . . . . . . . . . . . . . . . . . . . Trap Hack Attempts . | . . . . . . . . . . . . . . . . . . . . . . . . . Triggered . | . . . . . . . . . . . . . . . . . . . . . . . . . Disarmed . | . . . . . . . . . . . . . . . . . . . . . . . . . Reprogrammed . | . . . . . . . . . . . . . . . . . . . . . . . . . Reused . | . . . . . . . . . . . . . . . . . . . . . . . . . Traps Extracted . | . . . . . . . . . . . . . . . . . . . . . . . . . Installed . | . . . . . . . . . . . . . . . . . . . . . . . . . Triggered . | . . . . . . . . . . . . . . . . . . . . . . . . . Machines | -11 -10 -10 -10 -9 -8 -7 -7 -7 -7 -6 -6 -6 -6 -6 -6 -5 -4 -4 -4 -4 -3 -3 -2 -1 ---------- Run | Yrd Mat Min Exi Min Mat Fac Low Low Zio Pro Fac Ext Cet Arc Hub Fac Fac Upp Upp Zhi Pro Res Res Acc Machines Disabled 38 | . . . . . 1 2 . . . . 4 3 1 1 20 4 1 . . . . . . 1 Max in Single Turn 18 | . . . . . 1 1 . . . . 1 1 1 1 18 2 1 . . . . . . 1 Garrison Access 1 | . . . . . . . . . . . . . . . . . . . . . . 1 . . Network Hub 2 | . . . . . . . . . . . . . . . 2 . . . . . . . . . Energy Cycler 1 | . . . . . . . . . . . . . . . . . . . . . . . . 1 Machines Repaired . | . . . . . . . . . . . . . . . . . . . . . . . . . Machines Dismantled . | . . . . . . . . . . . . . . . . . . . . . . . . . Machines Sabotaged . | . . . . . . . . . . . . . . . . . . . . . . . . . Overloaded Fab Kills . | . . . . . . . . . . . . . . . . . . . . . . . . . Hacking | -11 -10 -10 -10 -9 -8 -7 -7 -7 -7 -6 -6 -6 -6 -6 -6 -5 -4 -4 -4 -4 -3 -3 -2 -1 --------- Run | Yrd Mat Min Exi Min Mat Fac Low Low Zio Pro Fac Ext Cet Arc Hub Fac Fac Upp Upp Zhi Pro Res Res Acc Machines Accessed 46 | . . . 2 1 5 7 1 . . . 4 3 1 . . 6 2 . 1 5 . 4 4 . Terminals 12 | . . . . 1 3 2 . . . . 2 3 1 . . . . . . . . . . . Fabricators 3 | . . . . . . . . . . . 1 . . . . 1 . . . . . 1 . . Repair Stations 5 | . . . . . 1 . . . . . 1 . . . . 1 . . . . . . 2 . Recycling Units 8 | . . . . . 1 1 . . . . . . . . . 2 2 . . . . 2 . . Scanalyzers 5 | . . . . . . 3 . . . . . . . . . 1 . . . . . . 1 . Garrison Access 4 | . . . . . . 1 . . . . . . . . . 1 . . . . . 1 1 . Total Hacks 114 | . . . 2 2 13 17 1 . . . 7 5 2 . . 18 6 . 5 18 . 4 14 . Successful 62 | . . . 2 1 5 6 1 . . . 3 2 1 . . 8 1 . 5 18 . 3 6 . Failed 52 | . . . . 1 8 11 . . . . 4 3 1 . . 10 5 . . . . 1 8 . Catastrophic 18 | . . . . . 4 2 . . . . 2 1 1 . . 3 2 . . . . 1 2 . Database Lockouts . | . . . . . . . . . . . . . . . . . . . . . . . . . Manual 15 | . . . 1 2 3 6 . . . . 1 . . . . 1 . . . . . 1 . . Terminals 28 | . . . . 2 9 6 . . . . 4 5 2 . . . . . . . . . . . Fabricators 4 | . . . . . . . . . . . 1 . . . . 2 . . . . . 1 . . Repair Stations 12 | . . . . . 2 . . . . . 2 . . . . 1 . . . . . . 7 . Recycling Units 21 | . . . . . 2 3 . . . . . . . . . 8 6 . . . . 2 . . Scanalyzers 17 | . . . . . . 7 . . . . . . . . . 4 . . . . . . 6 . Garrison Access 6 | . . . . . . 1 . . . . . . . . . 3 . . . . . 1 1 . Terminal Hacks 34 | . . . 2 1 4 . 1 . . . . 2 1 . . . . . 5 18 . . . . Record 12 | . . . 1 . . . . . . . . . . . . . . . 5 6 . . . . Part Schematic 4 | . . . . . . . . . . . . . . . . . . . . 4 . . . . Robot Analysis 4 | . . . . . . . . . . . . . . . . . . . . 4 . . . . Prototype ID Bank 6 | . . . . 1 1 . . . . . . . . . . . . . . 4 . . . . Open Door 4 | . . . . . . . 1 . . . . 2 1 . . . . . . . . . . . Unreport Threat 1 | . . . . . 1 . . . . . . . . . . . . . . . . . . . Hauler Manifests 2 | . . . . . 2 . . . . . . . . . . . . . . . . . . . Proto ID Catalog 1 | . . . 1 . . . . . . . . . . . . . . . . . . . . . Fabricator Hacks 2 | . . . . . . . . . . . . . . . . 2 . . . . . . . . Network Status 1 | . . . . . . . . . . . . . . . . 1 . . . . . . . . Load Schematic 1 | . . . . . . . . . . . . . . . . 1 . . . . . . . . Repair Station Hacks 3 | . . . . . . . . . . . 2 . . . . . . . . . . . 1 . Scan Component 2 | . . . . . . . . . . . 1 . . . . . . . . . . . 1 . Repair 1 | . . . . . . . . . . . 1 . . . . . . . . . . . . . Recycling Unit Hacks 4 | . . . . . 1 . . . . . . . . . . 1 1 . . . . 1 . . Retrieve Components 4 | . . . . . 1 . . . . . . . . . . 1 1 . . . . 1 . . Scanalyzer 14 | . . . . . . 5 . . . . . . . . . 4 . . . . . . 5 . Insert Component 3 | . . . . . . 1 . . . . . . . . . . . . . . . . 2 . Retrieve Study 11 | . . . . . . 4 . . . . . . . . . 4 . . . . . . 3 . Garrison Access Hacks 1 | . . . . . . . . . . . . . . . . . . . . . . 1 . . Seal Access 1 | . . . . . . . . . . . . . . . . . . . . . . 1 . . Unauthorized Hacks 4 | . . . . . . 1 . . . . 1 . . . . 1 . . . . . 1 . . Terminals 2 | . . . . . . 1 . . . . 1 . . . . . . . . . . . . . Botnet 2 | . . . . . . 1 . . . . 1 . . . . . . . . . . . . . Fabricators 1 | . . . . . . . . . . . . . . . . . . . . . . 1 . . Liberate 1 | . . . . . . . . . . . . . . . . . . . . . . 1 . . Repair Stations 1 | . . . . . . . . . . . . . . . . 1 . . . . . . . . Patch 1 | . . . . . . . . . . . . . . . . 1 . . . . . . . . Recycling Units . | . . . . . . . . . . . . . . . . . . . . . . . . . Scanalyzers . | . . . . . . . . . . . . . . . . . . . . . . . . . Garrison Access . | . . . . . . . . . . . . . . . . . . . . . . . . . Data Cores Recovered 2 | . . . . . . . . . . . . . . . . . . . . . . . 2 . Used . | . . . . . . . . . . . . . . . . . . . . . . . . . Hacking Detections 28 | . . . . 1 4 7 . . . . 4 2 1 . . 2 2 . . . . 1 4 . Full Trace Events 1 | . . . . . . . . . . . . 1 . . . . . . . . . . . . Feedback Events . | . . . . . . . . . . . . . . . . . . . . . . . . . Feedback Blocked . | . . . . . . . . . . . . . . . . . . . . . . . . . Robot Schematics Acquired 3 | . . . . . . . . . 3 . . . . . . . . . . . . . . . Robots Built . | . . . . . . . . . . . . . . . . . . . . . . . . . Authchips . | . . . . . . . . . . . . . . . . . . . . . . . . . Time . | . . . . . . . . . . . . . . . . . . . . . . . . . Total Robot Build Rating . | . . . . . . . . . . . . . . . . . . . . . . . . . Part Schematics Acquired 17 | . . . . . . . . . 13 . . . . . . . . . . 4 . . . . Parts Built . | . . . . . . . . . . . . . . . . . . . . . . . . . Authchips . | . . . . . . . . . . . . . . . . . . . . . . . . . Time . | . . . . . . . . . . . . . . . . . . . . . . . . . Total Part Build Rating . | . . . . . . . . . . . . . . . . . . . . . . . . . Part Studies Acquired 11 | . . . . . . 4 . . . . . . . . . 4 . . . . . . 3 . Parts Repaired 1 | . . . . . . . . . . . 1 . . . . . . . . . . . . . Time 19 | . . . . . . . . . . . 19 . . . . . . . . . . . . . Parts Recycled . | . . . . . . . . . . . . . . . . . . . . . . . . . Recycled Matter . | . . . . . . . . . . . . . . . . . . . . . . . . . Retrieved Matter . | . . . . . . . . . . . . . . . . . . . . . . . . . Retrieved Components 4 | . . . . . . . . . . . . . . . . 2 1 . . . . 1 . . Parts Scanalyzed . | . . . . . . . . . . . . . . . . . . . . . . . . . Part Schematics Acquired . | . . . . . . . . . . . . . . . . . . . . . . . . . Parts Damaged . | . . . . . . . . . . . . . . . . . . . . . . . . . Bothacking | -11 -10 -10 -10 -9 -8 -7 -7 -7 -7 -6 -6 -6 -6 -6 -6 -5 -4 -4 -4 -4 -3 -3 -2 -1 ------------ Run | Yrd Mat Min Exi Min Mat Fac Low Low Zio Pro Fac Ext Cet Arc Hub Fac Fac Upp Upp Zhi Pro Res Res Acc Used RIF Installer . | . . . . . . . . . . . . . . . . . . . . . . . . . Robots Hacked . | . . . . . . . . . . . . . . . . . . . . . . . . . Non-combat . | . . . . . . . . . . . . . . . . . . . . . . . . . Combat . | . . . . . . . . . . . . . . . . . . . . . . . . . Robot Hacks Applied . | . . . . . . . . . . . . . . . . . . . . . . . . . Relay Couplers Released . | . . . . . . . . . . . . . . . . . . . . . . . . . Fabnet Peak Effective % . | . . . . . . . . . . . . . . . . . . . . . . . . . Robots Rewired 14 | . . . . . . . . . . . . 14 . . . . . . . . . . . . Allies Hacked . | . . . . . . . . . . . . . . . . . . . . . . . . . Hacks Repelled . | . . . . . . . . . . . . . . . . . . . . . . . . . Allies | -11 -10 -10 -10 -9 -8 -7 -7 -7 -7 -6 -6 -6 -6 -6 -6 -5 -4 -4 -4 -4 -3 -3 -2 -1 -------- Run | Yrd Mat Min Exi Min Mat Fac Low Low Zio Pro Fac Ext Cet Arc Hub Fac Fac Upp Upp Zhi Pro Res Res Acc Total Allies 30 | . . . . 1 . . . . 6 . . 20 . . . . . . . . . 3 . . Largest Group 10 | . . . . 1 1 . . . 6 6 3 10 10 . . . . . . . . 3 1 . Highest-Rated Group 344 | . . . . 31 31 . . . 143 143 84 344 344 . . . . . . . . 122 56 . Highest-Rated Ally 99 | . . . . 31 31 . . . 31 31 31 99 99 . . . . . . . . 56 56 . Total Orders 34 | . . . . . . . . . . . . 7 . . 4 5 1 . . . . 5 6 6 STAY 1 | . . . . . . . . . . . . 1 . . . . . . . . . . . . FOLLOW 1 | . . . . . . . . . . . . 1 . . . . . . . . . . . . RETURN 32 | . . . . . . . . . . . . 5 . . 4 5 1 . . . . 5 6 6 Ally Attacks 155 | . . . . . 2 . . . . 27 1 71 23 . . . . . . . . 30 1 . Total Damage 3773 | . . . . . 22 . . . . 429 24 1827 570 . . . . . . . . 835 66 . Kills 21 | . . . . . 1 . . . . 2 1 12 1 . . . . . . . . 4 . . Allies Corrupted . | . . . . . . . . . . . . . . . . . . . . . . . . . Allies Melted . | . . . . . . . . . . . . . . . . . . . . . . . . . Intel | -11 -10 -10 -10 -9 -8 -7 -7 -7 -7 -6 -6 -6 -6 -6 -6 -5 -4 -4 -4 -4 -3 -3 -2 -1 ------- Run | Yrd Mat Min Exi Min Mat Fac Low Low Zio Pro Fac Ext Cet Arc Hub Fac Fac Upp Upp Zhi Pro Res Res Acc Active Infowar (turns) 5808 | 7 34 79 106 170 162 342 151 249 392 519 253 982 96 . 135 309 149 207 363 57 53 351 401 241 Sensors 4247 | . . . . . . 234 151 249 392 519 251 294 96 . . 239 149 207 363 57 53 351 401 241 Terrain 200 | . . . . 142 58 . . . . . . . . . . . . . . . . . . . Structural 3159 | . . . . . . . . . . . 40 918 96 . 135 204 95 207 363 57 53 349 401 241 Seismic 1077 | 7 34 79 106 170 162 328 151 40 . . . . . . . . . . . . . . . . T.N.C. 563 | . . . . . . 338 151 74 . . . . . . . . . . . . . . . . ECM 491 | . . . . . . . . . . . . . . . . . . . . . . 287 204 . Robot Analysis Total 4 | . . . . . . . . . . . . . . . . . . . . 4 . . . . Derelict Logs Recovered 14 | . . 2 . 1 . . 1 3 2 2 . . . . . . . 2 1 . . . . . Drone Launches 32 | . . . . . . . . . . . . 5 . . 4 5 1 . . . . 5 6 6 Drone Recoveries 32 | . . . . . . . . . . . . 5 . . 4 5 1 . . . . 5 6 6 Exploration | -11 -10 -10 -10 -9 -8 -7 -7 -7 -7 -6 -6 -6 -6 -6 -6 -5 -4 -4 -4 -4 -3 -3 -2 -1 ------------- Run | Yrd Mat Min Exi Min Mat Fac Low Low Zio Pro Fac Ext Cet Arc Hub Fac Fac Upp Upp Zhi Pro Res Res Acc Turns Passed 6525 | 56 34 79 106 170 162 342 151 249 392 519 339 1350 96 46 175 437 149 207 363 57 53 351 401 241 Spaces Moved 12233 | 58 65 124 209 231 279 618 421 523 973 609 612 1248 102 58 312 954 369 780 945 158 185 622 1101 677 Core 1363 | 58 65 124 209 230 279 397 . . . . . 1 . . . . . . . . . . . . Treads 1 | . . . . 1 . . . . . . . . . . . . . . . . . . . . Legs . | . . . . . . . . . . . . . . . . . . . . . . . . . Wheels . | . . . . . . . . . . . . . . . . . . . . . . . . . Hover . | . . . . . . . . . . . . . . . . . . . . . . . . . Flight 10869 | . . . . . . 221 421 523 973 609 612 1247 102 58 312 954 369 780 945 158 185 622 1101 677 Fastest Speed 5 | 50 50 50 50 50 50 26 26 26 26 26 23 5 5 23 5 20 21 21 21 21 21 19 21 21 Average Speed 26 | 50 50 50 50 50 50 43 26 26 26 26 23 23 22 23 23 21 21 21 21 21 21 20 21 23 Slowest Speed 400 | 50 50 50 50 160 50 100 26 26 26 26 23 400 23 23 91 91 23 21 21 21 21 21 21 92 Overloaded Moves 7 | . . . . . . . . . . . . 1 5 . 1 . . . . . . . . . Propulsion Burnouts . | . . . . . . . . . . . . . . . . . . . . . . . . . Robots Hopped 24 | . . . . . . . . . . . . 8 1 1 2 1 . . . . . 3 4 4 Potential Cave-ins . | . . . . . . . . . . . . . . . . . . . . . . . . . Cave-ins Triggered . | . . . . . . . . . . . . . . . . . . . . . . . . . Exploration Rate (%) 49 | 4 23 33 61 61 49 17 63 74 85 77 14 97 66 74 30 30 10 78 89 61 59 16 33 22 Regions Visited 24 Branch Regions 15 Pre-discovered Areas 8 | . . 1 1 . . . . . 1 . . . . . . . . 1 1 3 . . . . Known Exits Taken 19 | . . . . . 1 1 1 1 1 1 1 1 1 1 1 1 1 1 1 1 1 1 1 . Unknown Exits Taken 5 | 1 1 1 1 1 . . . . . . . . . . . . . . . . . . . . Scrap Searched 15 | . . . . 1 . . 2 2 3 1 . . . . . . . 1 4 . 1 . . . Spaces Dug 125 | . . . . . 19 . 3 5 . . 9 3 . 2 4 23 5 8 8 . 1 16 14 5 Terrain Destroyed 582 | . . . . . 52 . 3 5 . . 9 28 . 2 319 75 5 8 8 . 1 16 14 37 Melee 105 | . . . . . . . 3 5 . . 9 3 . 2 4 23 5 8 8 . 1 16 14 4 Projectile 1 | . . . . . . . . . . . . . . . . . . . . . . . . 1 AOE 476 | . . . . . 52 . . . . . . 25 . . 315 52 . . . . . . . 32 Terrain Rammed . | . . . . . . . . . . . . . . . . . . . . . . . . . Walls Destroyed . | . . . . . . . . . . . . . . . . . . . . . . . . . Machines Disabled . | . . . . . . . . . . . . . . . . . . . . . . . . . Actions | -11 -10 -10 -10 -9 -8 -7 -7 -7 -7 -6 -6 -6 -6 -6 -6 -5 -4 -4 -4 -4 -3 -3 -2 -1 --------- Run | Yrd Mat Min Exi Min Mat Fac Low Low Zio Pro Fac Ext Cet Arc Hub Fac Fac Upp Upp Zhi Pro Res Res Acc Total 15110 | 73 66 135 210 263 293 677 457 626 1108 952 772 2214 168 74 400 1136 422 814 1098 176 197 821 1220 738 Wait 2111 | . . 7 . 8 1 13 27 88 128 335 108 694 63 4 64 108 24 27 144 . 12 156 56 44 Move 12163 | 57 64 123 208 230 278 617 420 522 972 608 611 1233 99 55 307 951 368 779 944 157 184 615 1093 668 Hop 21 | . . . . . . . . . . . . 6 1 1 2 1 . . . . . 3 3 4 Pick Up 55 | 4 1 1 1 2 . 7 1 2 2 . . 1 . . 2 7 3 . . 1 . 4 13 3 Fast Attach 53 | 6 . . . 1 1 9 . . . . 2 5 . . 4 5 3 . . 6 . 5 6 . Attach 22 | . . . . 2 2 4 1 1 . . 2 . . . . 4 2 . . 1 . 1 . 2 Detach 14 | 1 . . . 1 2 3 . 3 . . 1 . . . . . . . . . . 1 1 1 Swap 67 | . . . . . . 4 1 . . 1 3 19 . . 4 5 5 . . 2 . 8 9 6 Drop 56 | . 1 1 1 1 . 9 2 . 2 . . 4 . . 4 6 3 . . 6 . 8 7 1 Fire 44 | 5 . 3 . 11 8 5 . . . . . 3 . . 4 3 . . . . . . . 2 Melee 280 | . . . . . . 4 5 10 4 8 30 61 5 14 4 40 14 8 10 3 1 20 32 7 Ram 1 | . . . . . 1 . . . . . . . . . . . . . . . . . . . Kick . | . . . . . . . . . . . . . . . . . . . . . . . . . Crush 7 | . . . . 7 . . . . . . . . . . . . . . . . . . . . Escape Stasis 101 | . . . . . . . . . . . 15 75 . . 5 6 . . . . . . . . Rewire 115 | . . . . . . 2 . . . . . 113 . . . . . . . . . . . . Trap . | . . . . . . . . . . . . . . . . . . . . . . . . . Miscellaneous . | . . . . . . . . . . . . . . . . . . . . . . . . . Route ------- -11/Scrapyard -10/Materials -10/Mines (discovered 2 exits: [*Mat] / *Exi) -10/Exiles -9/Mines -8/Materials (discovered 2 exits: *Fac x2) -7/Factory -7/Lower Caves -7/Lower Caves (discovered 2 exits: Fac / *Zio) -7/Zion (discovered 2 exits: Dee / *Pro) -6/Proximity Caves -6/Factory (discovered 3 exits: Fac / *Ext x2) -6/Extension (discovered 2 exits: *Fac / *Cet) -6/Cetus -6/Archives (discovered 2 exits: *Hub x2) -6/Hub_04(d) -5/Factory (discovered 6 exits: *Fac x4 / Upp x2) -4/Factory -4/Upper Caves -4/Upper Caves (discovered 2 exits: *Res / *Zhi) -4/Zhirov -3/Proximity Caves -3/Research (discovered 5 exits: *Res x3 / Qua x2) -2/Research (discovered 5 exits: *Acc x3 / *Tes x2) -1/Access (discovered 2 exits: *Sur / Com) To Epsilon Eridani History --------- Turn | Location | Event 6 | -11/Scrapyard | Discovered new exit (range 14) 57 | -11/Scrapyard | Entered Materials 84 | -10/Materials | Discovered new exit (range 15) 91 | -10/Materials | Entered Mines 94 | -10/Mines | Met a Derelict bent on vengeance 103 | -10/Mines | Discovered new exit (range 12) 138 | -10/Mines | Learned location of 1 exit from Materials 161 | -10/Mines | Learned location of Zion (-7) 168 | -10/Mines | Deemed a non-threat by the Exiles lab entrance 168 | -10/Mines | Discovered new exit (range 5) 170 | -10/Mines | Entered Exiles 184 | -10/Exiles | Met 8R-AWN 191 | -10/Exiles | Met EX-HEX 205 | -10/Exiles | Met EX-BIN 211 | -10/Exiles | Aligned with FarCom system 212 | -10/Exiles | Given EX-Vault access code 224 | -10/Exiles | Opened EX-Vault 227 | -10/Exiles | Found Longsword +1 239 | -10/Exiles | Warned to stay clear of 0b10 Research branches 253 | -10/Exiles | Met EX-DEC 272 | -10/Exiles | Discovered new exit (range 10) 276 | -10/Exiles | Left Exiles lab with Longsword +1 276 | -10/Exiles | Entered Mines 371 | -9/Mines | Received a Rocket Launcher from a helpful Derelict 381 | -9/Mines | Assembled infested the area 386 | -9/Mines | Assisted by a Guerilla fighting off Assembled 400 | -9/Mines | Learned 2 Materials zone layouts 437 | -9/Mines | Discovered new exit (range 4) 440 | -9/Mines | Received a Mining Laser from a helpful Derelict 446 | -9/Mines | Entered Materials 446 | -8/Materials | Accompanied by 1 ally 446 | -8/Materials | Evolved 4 slots: Propulsion x2, Utility x2 447 | -8/Materials | Identified exit to Factory 594 | -8/Materials | Discovered exit to Factory (range 13) 608 | -8/Materials | Entered Factory 608 | -7/Factory | Evolved 2 slots: Utility x2 715 | -7/Factory | Garrison activated, responded to threat 929 | -7/Factory | Discovered new exit (range 13) 936 | -7/Factory | Identified exit to Lower Caves 950 | -7/Factory | Entered Lower Caves 990 | -7/Lower Caves | Found Prototype Device 1006 | -7/Lower Caves | Build established: Scout 1012 | -7/Lower Caves | Learned Factory garrison access intel 1069 | -7/Lower Caves | Discovered new exit (range 13) 1072 | -7/Lower Caves | Identified exit to Lower Caves 1101 | -7/Lower Caves | Entered another Lower Caves area 1122 | -7/Lower Caves | Learned Factory garrison access intel 1159 | -7/Lower Caves | Identified exit to Factory 1176 | -7/Lower Caves | Identified Heart of Steel 1231 | -7/Lower Caves | Discovered new exit (range 6) 1233 | -7/Lower Caves | Identified exit to Zion 1350 | -7/Lower Caves | Entered Zion 1355 | -7/Zion | Given the Hacking Drone Bay 1355 | -7/Zion | Found Prototype Device 1363 | -7/Zion | Discovered new exit (range 11) 1445 | -7/Zion | Identified exit to Deep Caves 1471 | -7/Zion | Build established: Sprinter 1477 | -7/Zion | Rebuked by Imprinter 1519 | -7/Zion | Learned Factory emergency access door positions 1580 | -7/Zion | Found CR-A16's Pointy Stick 1604 | -7/Zion | Gained Derelict followers 1637 | -7/Zion | Identified exit to Proximity Caves 1742 | -7/Zion | Entered Proximity Caves 1742 | -6/Proximity Caves | Accompanied by 6 allies 1812 | -6/Proximity Caves | Spotted B-75 Beast 1948 | -6/Proximity Caves | Allies destroyed B-75 Beast 1976 | -6/Proximity Caves | Lost 3 allies 1994 | -6/Proximity Caves | Attracted the attention of an 0b10 checkpoint 1996 | -6/Proximity Caves | Learned 4 Factory zone layouts 2017 | -6/Proximity Caves | Discovered exit to Factory (range 12) 2023 | -6/Proximity Caves | Learned Factory security intel 2154 | -6/Proximity Caves | Received a Behemoth hack from an annoying Tinkerer 2261 | -6/Proximity Caves | Entered Factory 2261 | -6/Factory | Accompanied by 3 allies 2261 | -6/Factory | Evolved 2 slots: Propulsion x1, Utility x1 2262 | -6/Factory | Identified exit to Extension 2263 | -6/Factory | Identified exit to Factory 2266 | -6/Factory | Loaded intel: 3 garrison access locations 2402 | -6/Factory | Repaired Lgt. Nuclear Core+ 2567 | -6/Factory | Discovered exit to Extension (range 12) 2600 | -6/Factory | Entered Extension 2600 | -6/Extension | Accompanied by 3 allies 2682 | -6/Extension | Rescued a captive Derelict 2684 | -6/Extension | Rescued a captive Derelict 2731 | -6/Extension | Identified Hacking Drone Bay 2764 | -6/Extension | Build established: Scout 3042 | -6/Extension | Heart of Steel transformed into Warbot 3376 | -6/Extension | Spotted B-75 Beast 3379 | -6/Extension | Spotted B-75 Beast 3383 | -6/Extension | Revealed the true nature of CR-A16's Pointy Stick 3386 | -6/Extension | Allies destroyed B-75 Beast 3387 | -6/Extension | Destroyed B-75 Beast 3414 | -6/Extension | Build established: Commander-Scout 3545 | -6/Extension | Discovered exit to Factory (range 16) 3545 | -6/Extension | Discovered new exit (range 16) 3559 | -6/Extension | Identified exit to Cetus 3567 | -6/Extension | Lost 4 allies 3686 | -6/Extension | Rescued a captive Derelict 3687 | -6/Extension | Rescued a captive Derelict 3730 | -6/Extension | Destroyed 7 combat bots 3759 | -6/Extension | Rescued a captive Derelict 3950 | -6/Extension | Entered Cetus 3950 | -6/Cetus | Accompanied by 10 allies (Warbot) 3978 | -6/Cetus | Spotted Cetus Guard 3978 | -6/Cetus | Spotted Cetus Guard 3983 | -6/Cetus | Spotted Cetus Guard 3983 | -6/Cetus | Spotted Cetus Guard 4000 | -6/Cetus | Allies destroyed Cetus Guard 4019 | -6/Cetus | Discovered new exit (range 16) 4023 | -6/Cetus | Identified exit to Archives 4029 | -6/Cetus | Lost 8 allies 4046 | -6/Cetus | Entered Archives 4086 | -6/Archives | Discovered new exit (range 13) 4088 | -6/Archives | Discovered new exit (range 14) 4091 | -6/Archives | Identified exit to Hub_04(d) 4092 | -6/Archives | Entered Hub_04(d) 4192 | -6/Hub_04(d) | Network Hub disabled 4247 | -6/Hub_04(d) | Discovered exit to Factory (range 12) 4257 | -6/Hub_04(d) | Network Hub disabled 4267 | -6/Hub_04(d) | Entered Factory 4267 | -5/Factory | Evolved 2 slots: Power x1, Propulsion x1 4268 | -5/Factory | Loaded intel: 4 garrison access locations 4567 | -5/Factory | Search patrols dispatched 4671 | -5/Factory | Identified exit to Factory 4673 | -5/Factory | Identified exit to Upper Caves 4704 | -5/Factory | Entered another Factory area 4704 | -4/Factory | Evolved 2 slots: Utility x2 4722 | -4/Factory | Spotted B-86 Titan 4725 | -4/Factory | Destroyed B-86 Titan 4812 | -4/Factory | Discovered new exit (range 5) 4812 | -4/Factory | Identified exit to Upper Caves 4853 | -4/Factory | Entered Upper Caves 4892 | -4/Upper Caves | Learned Research emergency access door positions 4963 | -4/Upper Caves | Discovered new exit (range 8) 4965 | -4/Upper Caves | Identified exit to Upper Caves 5021 | -4/Upper Caves | Learned location of Armory (-4) 5060 | -4/Upper Caves | Entered another Upper Caves area 5075 | -4/Upper Caves | Discovered new exit (range 5) 5075 | -4/Upper Caves | Identified exit to Research 5099 | -4/Upper Caves | Build established: Scavenger-Scout 5099 | -4/Upper Caves | Learned Armory emergency access door positions 5099 | -4/Upper Caves | Learned Factory terminal intel 5227 | -4/Upper Caves | Discovered new exit (range 6) 5228 | -4/Upper Caves | Identified exit to Zhirov 5242 | -4/Upper Caves | Encountered a Warlord checkpoint 5423 | -4/Upper Caves | Entered Zhirov 5423 | -4/Zhirov | Discovered new exit (range 3) 5427 | -4/Zhirov | Met Zhirov 5431 | -4/Zhirov | Learned location of Quarantine (-3) 5431 | -4/Zhirov | Learned location of Testing (-2) 5431 | -4/Zhirov | Learned location of Command (-1) 5434 | -4/Zhirov | Zhirov requested help retrieving the SGEMP Prototype 5439 | -4/Zhirov | Found Alien Artifact 5439 | -4/Zhirov | Identified Integrated Reactor 5439 | -4/Zhirov | Installed Integrated Reactor, increased core energy generation (+10) 5446 | -4/Zhirov | Found Alien Artifact 5480 | -4/Zhirov | Identified exit to Proximity Caves 5480 | -4/Zhirov | Entered Proximity Caves 5533 | -3/Proximity Caves | Entered Research 5533 | -3/Research | Evolved 2 slots: Propulsion x1, Utility x1 5547 | -3/Research | Discovered new exit (range 15) 5550 | -3/Research | Identified exit to Research 5625 | -3/Research | Found Prototype Device 5638 | -3/Research | Identified Exp. Focal Shield 5642 | -3/Research | Found Prototype Device 5642 | -3/Research | Identified Adv. EM Shield 5654 | -3/Research | Found Prototype Device 5654 | -3/Research | Identified Exp. EM Disruption Field 5673 | -3/Research | Found Gamma Bomb Array 5739 | -3/Research | Identified exit to Quarantine 5884 | -3/Research | Entered another Research area 5884 | -2/Research | Accompanied by 1 ally 5884 | -2/Research | Evolved 2 slots: Utility x2 5887 | -2/Research | Build established: Infiltrator-Ninja 5889 | -2/Research | Identified Transdimensional Reconstructor 5996 | -2/Research | Spotted B-90 Cyclops 6004 | -2/Research | Discovered new exit (range 7) 6005 | -2/Research | Identified exit to Testing 6009 | -2/Research | Destroyed B-90 Cyclops 6039 | -2/Research | Spotted B-90 Cyclops 6045 | -2/Research | Destroyed B-90 Cyclops 6180 | -2/Research | Identified exit to Access 6193 | -2/Research | Build established: Scavenger-Ninja 6285 | -2/Research | Entered Access 6285 | -1/Access | Evolved 2 slots: Propulsion x1, Utility x1 6327 | -1/Access | Energy Cycler disabled 6483 | -1/Access | Identified exit to Command 6488 | -1/Access | Identified exit to Surface 6511 | -1/Access | Assembled infested ambush trap array 6526 | *** | Escaped! Last Messages --------------- hatch in the floor. 06511_ Disabled S-43 Plague is pushed from a hatch in the floor. 06511_ as-36008 emerges from a hatch in the floor. 06511_ as-43198 emerges from a hatch in the floor. 06511_ as-44463 emerges from a hatch in the floor. 06511_ ALERT: Infestation has breached Complex 0b10, dispatching Demolisher response squad. 06511_ Critical hit (Burn: +80). 06515_ ALERT: Suspicious intruders detected, dispatching Cutter reinforcements to area. 06518_ W-44 Eye sends out distress signal. 06520_ Door malfunctions. 06520_ U-05 Engineer destroyed. 06520_ C-57 Dissector destroyed. 06521_ K-01 Serf collects debris. 06525_ The Access Shell folds into the floor. Map ----- +----------------------------------------------------+ | ?????????????????????????????????????????????????? | | ?????????????????????????????????????????????????? | | ?????????????????????????????????????????????????? | | ?????????????????????????????????????????????????? | | ?????????????????????????????????????????????????? | | ?????????????????????????????????????????????????? | | ?????????????????????????????????????????????????? | | ?????????????????????????p???????????????????????? | | ?????????????????????????????????????????????????? | | ?????????????????????????????????????????????????? | | ?????????????????????????????????????????????????? | | ?????????????????????????????????????????????????? | | ?????????????????????????????????????????????????? | | ?????????## h????????????????????????????????????? | | ?????????## ????????????????????????????????????? | | ?????????## ????????????????????????????????????? | | ?????????## ????????????????????????????????????? | | ?????????## ?????#####??????????????????????????? | | ?????????## ###################?????????????????? | | ?????????## ####### ###########?????????????????? | | ?????????## """T""" ""?????????????????? | | ?????????## """ """ "????BB????????????? | | ?????????## "????BB????????????? | | ?????????## "??????????????????? | | ?????????## "" "??????????????????? | | ?????????## @" "??????????????????? | | ?????????## "??????????????????? | | ?????????## "????BB????????????? | | ?????????## "????BB????????????? | | ?????????## ""?????????????????? | | ?????????## ####### ###########?????????????????? | | ?????????## ###################?????????????????? | | ?????????## ###############?????????????????????? | | ?????????## p## ##?????????????????????? | | ?????????## ## ##?????????????????????? | | ?????????## ## ##?????????????????????? | | ?????????## ## ?????????????????????????? | | ????????### ## [ ????########???????????????? | | ?## #####" ## ######## ###?????? | | ?## ##### ###/########## ######+#####?????? | | ?## ==| " ?????? | | ?## =%!! u p ??????? | | ?######### ###!########## =##### #####??????? | | ?##########+####*% ########## ######+#####??????? | | ???????? =! =# # # ##??????? | | ????????????? # # ##??????? | | #######???? " + + " + ??????? | | #######??? """ # # """ ##??????? | | ##?? """ + # """ ##??????? | | ##? = " # # " ##??????? | +----------------------------------------------------+ Best States ------------- Heat Dissipation 111 Energy Generation 50 Energy Capacity 200 Matter Stores 300 Matter Capacity 300 Sight Range 16 Robot Scan Range 16 Terrain Scan Range 16 Terrain Scan Density 210 ECM Strength 1 Power Amplification 60 Additional Mass Support 9 Base Temperature (-) 200 Armor Coverage 375 Evasion (%) 79 Core Analysis 6 Recoil Reduction 2 Item Schematics ----------------- Lrn. Missile Launcher | -7/Zion | Archive Greatsword | -7/Zion | Archive Adv. System Restoration Module | -7/Zion | Archive Imp. Carbon-fiber Leg | -7/Zion | Archive Force Field | -7/Zion | Archive Core Analyzer | -7/Zion | Archive Falx | -7/Zion | Archive IFF Parser | -7/Zion | Archive Lightning Gun | -7/Zion | Archive Phase Shifter | -7/Zion | Archive EM Shield | -7/Zion | Archive System Restoration Module | -7/Zion | Archive Tiamat Missile Launcher | -7/Zion | Archive Assault Drone Bay | -4/Zhirov | Free Exp. Heat Sink | -4/Zhirov | Free Exp. Optical Array | -4/Zhirov | Free Imp. Arc Thrower | -4/Zhirov | Free Robot Schematics ------------------ A-02 Transporter | -7/Zion | Archive K-01 Serf | -7/Zion | Archive Y-45 Defender | -7/Zion | Archive Fabricated ------------ Nothing Repaired ---------- Lgt. Nuclear Core | 70% | -6/Factory Studied --------- Flight Unit | -7/Factory | Hacked Lgt. Nuclear Core | -7/Factory | Hacked Arm. Treads | -7/Factory | Hacked Rocket Launcher | -7/Factory | Hacked Field Propulsion Drive | -5/Factory | Hacked Mic. Nuclear Core | -5/Factory | Hacked Mic. Fission Core | -5/Factory | Hacked Imp. Remote Datajack | -5/Factory | Hacked Impulse Thruster Array | -2/Research | Hacked Nova Cannon | -2/Research | Hacked Gamma Bomb Array | -2/Research | Hacked Alien Tech Used ----------------- Integrated Reactor Achievements -------------- Brother of Steel Challenges ------------ None Game ------ Seed GuidanceTeslaWell Manual? 0 Play Time 01:34:06 Cumulative 334.3 hours Start 2026.07.03 @ 11:00:05 End 2026.07.03 @ 12:49:29 Sessions 5 Manual Loads 0 Difficulty Rogue Special Mode None Game No. 213 Rogue 209 Adventurer 4 Explorer 0 Win Type 0 Total 98 Types 81/0/11/2/1/1/1/0/0/1 Lore% 90 Gallery% 72 Achievement% 71 Wizard Run 0 Options --------- Layout 2 ASCII 0 Keyboard 1 Movement Vi Keybinds 1 Fullscreen 2 Font 24/Smallcaps Map View 50x44 Zoom Use 0% Tactical HUD 1 Map Filters NONE Filters NONE Steam 1 RUN: 78b95eb1-14c4-4de6-892e-43b89a7596e0